[Event "Titled Tuesday Blitz October 5 2021"]
[White "Maly, Alexey"]
[Black "Piesik, Piotr"]
[WhiteFideId "14103184"]
[BlackFideId "1136194"]
[WhiteElo "2294"]
[BlackElo "2336"]
[Result "1-0"]
[Round "10"]
[TimeControl "180+1"]
[Date "2021.10.05"]
[WhiteClock "0:00:14"]
[BlackClock "0:01:21"]

1. d4 {[%clk 0:03:00]}  c5 {[%clk 0:02:55]} 2. d5 {[%clk 0:03:00]}  e5 {[%clk 0:02:55]} 3. c4 {[%clk 0:02:59]}  d6 {[%clk 0:02:55]} 4. Nc3 {[%clk 0:02:59]}  Be7 {[%clk 0:02:56]} 5. g3 {[%clk 0:02:58]}  Bg5 {[%clk 0:02:56]} 6. Bg2 {[%clk 0:02:58]}  Bxc1 {[%clk 0:02:55]} 7. Rxc1 {[%clk 0:02:59]}  Ne7 {[%clk 0:02:55]} 8. e4 {[%clk 0:02:59]}  O-O {[%clk 0:02:56]} 9. Nge2 {[%clk 0:02:59]}  Nd7 {[%clk 0:02:55]} 10. O-O {[%clk 0:02:59]}  f5 {[%clk 0:02:55]} 11. f4 {[%clk 0:02:58]}  exf4 {[%clk 0:02:55]} 12. Nxf4 {[%clk 0:02:57]}  Ne5 {[%clk 0:02:55]} 13. b3 {[%clk 0:02:36]}  N7g6 {[%clk 0:02:48]} 14. Ne6 {[%clk 0:02:22]}  Bxe6 {[%clk 0:02:47]} 15. dxe6 {[%clk 0:02:23]}  f4 {[%clk 0:02:47]} 16. Nd5 {[%clk 0:02:16]}  fxg3 {[%clk 0:02:46]} 17. Rxf8+ {[%clk 0:02:08]}  Qxf8 {[%clk 0:02:41]} 18. hxg3 {[%clk 0:02:06]}  Re8 {[%clk 0:02:41]} 19. Nc7 {[%clk 0:01:36]}  Rc8 {[%clk 0:02:29]} 20. Qd5 {[%clk 0:01:24]}  Qe7 {[%clk 0:02:21]} 21. Nb5 {[%clk 0:01:20]}  Rd8 {[%clk 0:01:58]} 22. Rd1 {[%clk 0:01:18]}  Nf8 {[%clk 0:01:51]} 23. Bh3 {[%clk 0:01:09]}  a6 {[%clk 0:01:42]} 24. Nxd6 {[%clk 0:01:06]}  Nf3+ {[%clk 0:01:42]} 25. Kg2 {[%clk 0:01:00]}  Nd4 {[%clk 0:01:43]} 26. Nf5 {[%clk 0:00:24]}  Qc7 {[%clk 0:01:42]} 27. e7+ {[%clk 0:00:24]}  Rxd5 {[%clk 0:01:42]} 28. e8=Q {[%clk 0:00:22]}  Rd8 {[%clk 0:01:35]} 29. Ne7+ {[%clk 0:00:20]}  Kh8 {[%clk 0:01:35]} 30. Qf7 {[%clk 0:00:19]}  Nd7 {[%clk 0:01:24]} 31. Bxd7 {[%clk 0:00:16]}  Qxd7 {[%clk 0:01:21]} 32. Ng6+ {[%clk 0:00:14]} 1-0


[Site "https://www.chess.com"]

[Event "Titled Tuesday Blitz October 5 2021"]
[White "Mikhalevski, Victor"]
[Black "Sydoryka, Vladyslav"]
[WhiteFideId "2801914"]
[BlackFideId "14145928"]
[WhiteElo "2577"]
[BlackElo "2282"]
[Result "1-0"]
[Round "10"]
[TimeControl "180+1"]
[Date "2021.10.05"]
[WhiteClock "0:00:11"]
[BlackClock "0:00:01"]

1. Nf3 {[%clk 0:03:00]}  d5 {[%clk 0:02:44]} 2. g3 {[%clk 0:03:00]}  Bg4 {[%clk 0:02:43]} 3. Bg2 {[%clk 0:03:01]}  Nd7 {[%clk 0:02:43]} 4. O-O {[%clk 0:03:01]}  c6 {[%clk 0:02:42]} 5. h3 {[%clk 0:03:00]}  Bh5 {[%clk 0:02:42]} 6. c4 {[%clk 0:02:59]}  Bxf3 {[%clk 0:02:40]} 7. Bxf3 {[%clk 0:02:48]}  Ne5 {[%clk 0:02:41]} 8. Qb3 {[%clk 0:02:48]}  Nxf3+ {[%clk 0:02:33]} 9. exf3 {[%clk 0:02:45]}  Qd7 {[%clk 0:02:30]} 10. cxd5 {[%clk 0:02:43]}  cxd5 {[%clk 0:02:31]} 11. Nc3 {[%clk 0:02:43]}  e6 {[%clk 0:02:31]} 12. Re1 {[%clk 0:02:42]}  Nf6 {[%clk 0:02:30]} 13. d4 {[%clk 0:02:39]}  Be7 {[%clk 0:02:26]} 14. Bf4 {[%clk 0:02:37]}  O-O {[%clk 0:02:25]} 15. Rac1 {[%clk 0:02:37]}  Rfc8 {[%clk 0:02:24]} 16. Be5 {[%clk 0:02:29]}  Rc6 {[%clk 0:02:14]} 17. Ne2 {[%clk 0:02:13]}  Rac8 {[%clk 0:02:00]} 18. Kg2 {[%clk 0:02:11]}  a6 {[%clk 0:01:54]} 19. g4 {[%clk 0:02:10]}  Rxc1 {[%clk 0:01:51]} 20. Nxc1 {[%clk 0:02:08]}  Qb5 {[%clk 0:01:44]} 21. Qxb5 {[%clk 0:02:04]}  axb5 {[%clk 0:01:45]} 22. Nd3 {[%clk 0:02:04]}  Rc2 {[%clk 0:01:42]} 23. Kf1 {[%clk 0:01:51]}  Rd2 {[%clk 0:01:09]} 24. Re3 {[%clk 0:01:48]}  Nd7 {[%clk 0:01:07]} 25. Ke1 {[%clk 0:01:46]}  Rc2 {[%clk 0:01:06]} 26. Kd1 {[%clk 0:01:47]}  Rc6 {[%clk 0:00:58]} 27. Re2 {[%clk 0:01:40]}  f6 {[%clk 0:00:46]} 28. Bf4 {[%clk 0:01:38]}  Kf7 {[%clk 0:00:46]} 29. Bd2 {[%clk 0:01:35]}  Rc4 {[%clk 0:00:43]} 30. b3 {[%clk 0:01:27]}  Rc6 {[%clk 0:00:28]} 31. f4 {[%clk 0:01:20]}  g6 {[%clk 0:00:27]} 32. Re3 {[%clk 0:01:10]}  Bd6 {[%clk 0:00:26]} 33. Bb4 {[%clk 0:01:10]}  Bc7 {[%clk 0:00:23]} 34. Ba3 {[%clk 0:00:57]}  Bb6 {[%clk 0:00:22]} 35. Bb2 {[%clk 0:00:57]}  Rc8 {[%clk 0:00:21]} 36. Rf3 {[%clk 0:00:53]}  f5 {[%clk 0:00:21]} 37. g5 {[%clk 0:00:50]}  Bc7 {[%clk 0:00:20]} 38. Ba3 {[%clk 0:00:48]}  Nb8 {[%clk 0:00:18]} 39. Nc5 {[%clk 0:00:43]}  Nc6 {[%clk 0:00:16]} 40. Bb2 {[%clk 0:00:38]}  Ra8 {[%clk 0:00:12]} 41. a3 {[%clk 0:00:38]}  Ra7 {[%clk 0:00:10]} 42. Kc2 {[%clk 0:00:35]}  Bd6 {[%clk 0:00:11]} 43. b4 {[%clk 0:00:34]}  b6 {[%clk 0:00:08]} 44. Nd3 {[%clk 0:00:31]}  Nd8 {[%clk 0:00:07]} 45. Kb3 {[%clk 0:00:29]}  Rc7 {[%clk 0:00:08]} 46. Ne1 {[%clk 0:00:29]}  Rc4 {[%clk 0:00:08]} 47. Nc2 {[%clk 0:00:28]}  Nc6 {[%clk 0:00:08]} 48. Bc3 {[%clk 0:00:26]}  Nb8 {[%clk 0:00:04]} 49. Ne3 {[%clk 0:00:25]}  Rc7 {[%clk 0:00:04]} 50. h4 {[%clk 0:00:25]}  Nd7 {[%clk 0:00:03]} 51. h5 {[%clk 0:00:23]}  Nb8 {[%clk 0:00:03]} 52. Ng2 {[%clk 0:00:20]}  Kg7 {[%clk 0:00:02]} 53. Rh3 {[%clk 0:00:20]}  Rc4 {[%clk 0:00:02]} 54. Ne3 {[%clk 0:00:18]}  Rc8 {[%clk 0:00:01]} 55. Rh4 {[%clk 0:00:18]}  Kf7 {[%clk 0:00:02]} 56. hxg6+ {[%clk 0:00:17]}  hxg6 {[%clk 0:00:02]} 57. Rh7+ {[%clk 0:00:17]}  Kg8 {[%clk 0:00:03]} 58. Rb7 {[%clk 0:00:16]}  Rc6 {[%clk 0:00:03]} 59. Ng2 {[%clk 0:00:14]}  Kf8 {[%clk 0:00:03]} 60. Nh4 {[%clk 0:00:14]}  Bc7 {[%clk 0:00:02]} 61. Nxg6+ {[%clk 0:00:14]}  Ke8 {[%clk 0:00:02]} 62. Ne5 {[%clk 0:00:13]}  Bxe5 {[%clk 0:00:02]} 63. dxe5 {[%clk 0:00:13]}  Nd7 {[%clk 0:00:02]} 64. g6 {[%clk 0:00:13]}  Rc8 {[%clk 0:00:02]} 65. Bd4 {[%clk 0:00:11]}  Ke7 {[%clk 0:00:02]} 66. Bxb6 {[%clk 0:00:11]}  Rg8 {[%clk 0:00:02]} 67. Bc5+ {[%clk 0:00:11]}  Ke8 {[%clk 0:00:02]} 68. Bd6 {[%clk 0:00:10]}  Rxg6 {[%clk 0:00:02]} 69. Rxb5 {[%clk 0:00:10]}  Rg4 {[%clk 0:00:01]} 70. a4 {[%clk 0:00:10]}  Rxf4 {[%clk 0:00:02]} 71. a5 {[%clk 0:00:10]}  Rf3+ {[%clk 0:00:02]} 72. Ka4 {[%clk 0:00:10]}  Rxf2 {[%clk 0:00:03]} 73. Rb7 {[%clk 0:00:10]}  f4 {[%clk 0:00:02]} 74. a6 {[%clk 0:00:10]}  f3 {[%clk 0:00:02]} 75. a7 {[%clk 0:00:10]}  Ra2+ {[%clk 0:00:02]} 76. Kb5 {[%clk 0:00:10]}  f2 {[%clk 0:00:02]} 77. Rb8+ {[%clk 0:00:11]}  Kf7 {[%clk 0:00:02]} 78. a8=Q {[%clk 0:00:10]}  Rxa8 {[%clk 0:00:02]} 79. Rxa8 {[%clk 0:00:11]}  f1=Q+ {[%clk 0:00:03]} 80. Kc6 {[%clk 0:00:10]}  Qc4+ {[%clk 0:00:04]} 81. Kxd7 {[%clk 0:00:10]}  Qb5+ {[%clk 0:00:02]} 82. Kc7 {[%clk 0:00:10]}  Qc4+ {[%clk 0:00:01]} 83. Bc5 {[%clk 0:00:11]}  d4 {[%clk 0:00:01]} 84. Rf8+ {[%clk 0:00:11]}  Kg6 {[%clk 0:00:01]} 85. Rd8 {[%clk 0:00:11]}  d3 {[%clk 0:00:01]} 86. Rd6 {[%clk 0:00:11]} 1-0


[Site "https://www.chess.com"]

[Event "Titled Tuesday Blitz October 5 2021"]
[White "Moroni, Luca Jr"]
[Black "Csonka, Balazs"]
[WhiteFideId "865834"]
[BlackFideId "742910"]
[WhiteElo "2491"]
[BlackElo "2404"]
[Result "0-1"]
[Round "10"]
[TimeControl "180+1"]
[Date "2021.10.05"]
[WhiteClock "0:00:33"]
[BlackClock "0:00:04"]

1. d4 {[%clk 0:03:00]}  e6 {[%clk 0:03:00]} 2. c4 {[%clk 0:03:01]}  Nf6 {[%clk 0:03:00]} 3. Nc3 {[%clk 0:03:01]}  d5 {[%clk 0:03:00]} 4. cxd5 {[%clk 0:03:01]}  Nxd5 {[%clk 0:03:01]} 5. e4 {[%clk 0:03:00]}  Nxc3 {[%clk 0:03:02]} 6. bxc3 {[%clk 0:03:01]}  c5 {[%clk 0:03:02]} 7. Nf3 {[%clk 0:03:02]}  cxd4 {[%clk 0:03:02]} 8. cxd4 {[%clk 0:03:03]}  Bb4+ {[%clk 0:03:02]} 9. Bd2 {[%clk 0:03:03]}  Bxd2+ {[%clk 0:03:02]} 10. Qxd2 {[%clk 0:03:04]}  O-O {[%clk 0:03:02]} 11. Rc1 {[%clk 0:03:05]}  Nc6 {[%clk 0:02:50]} 12. Bc4 {[%clk 0:03:05]}  Na5 {[%clk 0:02:43]} 13. Bd3 {[%clk 0:03:02]}  b6 {[%clk 0:02:43]} 14. e5 {[%clk 0:02:19]}  Bb7 {[%clk 0:02:03]} 15. Ng5 {[%clk 0:02:18]}  h6 {[%clk 0:01:56]} 16. Nh7 {[%clk 0:02:18]}  Qxd4 {[%clk 0:01:33]} 17. Nxf8 {[%clk 0:02:17]}  Qxe5+ {[%clk 0:01:30]} 18. Qe2 {[%clk 0:02:13]}  Qg5 {[%clk 0:01:22]} 19. Qe3 {[%clk 0:01:44]}  Qxg2 {[%clk 0:01:03]} 20. Ke2 {[%clk 0:01:21]}  Qg4+ {[%clk 0:01:00]} 21. f3 {[%clk 0:01:21]}  Qg2+ {[%clk 0:00:57]} 22. Qf2 {[%clk 0:01:21]}  Bxf3+ {[%clk 0:00:56]} 23. Ke3 {[%clk 0:01:19]}  Qxf2+ {[%clk 0:00:54]} 24. Kxf2 {[%clk 0:01:18]}  Bxh1 {[%clk 0:00:55]} 25. Nd7 {[%clk 0:01:11]}  Bd5 {[%clk 0:00:51]} 26. a3 {[%clk 0:01:09]}  Nc6 {[%clk 0:00:45]} 27. Bb5 {[%clk 0:01:05]}  Rd8 {[%clk 0:00:40]} 28. Rxc6 {[%clk 0:01:05]}  Bxc6 {[%clk 0:00:37]} 29. Bxc6 {[%clk 0:01:05]}  f6 {[%clk 0:00:36]} 30. a4 {[%clk 0:01:01]}  Kf7 {[%clk 0:00:32]} 31. a5 {[%clk 0:01:01]}  bxa5 {[%clk 0:00:25]} 32. Ba4 {[%clk 0:01:01]}  Ke7 {[%clk 0:00:24]} 33. Nc5 {[%clk 0:01:01]}  Rd5 {[%clk 0:00:18]} 34. Nb3 {[%clk 0:00:58]}  f5 {[%clk 0:00:10]} 35. Bc6 {[%clk 0:00:57]}  Re5 {[%clk 0:00:09]} 36. h4 {[%clk 0:00:55]}  g5 {[%clk 0:00:09]} 37. h5 {[%clk 0:00:55]}  g4 {[%clk 0:00:07]} 38. Nd4 {[%clk 0:00:55]}  Rc5 {[%clk 0:00:05]} 39. Kg3 {[%clk 0:00:43]}  a4 {[%clk 0:00:05]} 40. Bxa4 {[%clk 0:00:34]}  Rc4 {[%clk 0:00:06]} 41. Nc6+ {[%clk 0:00:35]}  Kd6 {[%clk 0:00:06]} 42. Nd8 {[%clk 0:00:35]}  Rxa4 {[%clk 0:00:05]} 43. Nf7+ {[%clk 0:00:36]}  Ke7 {[%clk 0:00:06]} 44. Nxh6 {[%clk 0:00:37]}  Ra3+ {[%clk 0:00:06]} 45. Kf4 {[%clk 0:00:37]}  Rh3 {[%clk 0:00:05]} 46. Kg5 {[%clk 0:00:34]}  g3 {[%clk 0:00:05]} 47. Ng8+ {[%clk 0:00:34]}  Kf7 {[%clk 0:00:05]} 48. Nh6+ {[%clk 0:00:33]}  Kg7 {[%clk 0:00:04]} 0-1


[Site "https://www.chess.com"]

[Event "Titled Tuesday Blitz October 5 2021"]
[White "Nakamura, Hikaru"]
[Black "Le, Tuan Minh"]
[WhiteFideId "2016192"]
[BlackFideId "12401153"]
[WhiteElo "2884"]
[BlackElo "2450"]
[Result "1/2-1/2"]
[Round "10"]
[TimeControl "180+1"]
[Date "2021.10.05"]
[WhiteClock "0:00:03"]
[BlackClock "0:00:12"]

1. e4 {[%clk 0:03:00]}  c5 {[%clk 0:02:58]} 2. Nc3 {[%clk 0:02:58]}  Nc6 {[%clk 0:02:56]} 3. Nf3 {[%clk 0:02:58]}  e5 {[%clk 0:02:56]} 4. Bc4 {[%clk 0:02:58]}  Be7 {[%clk 0:02:56]} 5. d3 {[%clk 0:02:57]}  d6 {[%clk 0:02:56]} 6. Nd2 {[%clk 0:02:57]}  Nf6 {[%clk 0:02:56]} 7. Nf1 {[%clk 0:02:58]}  Bg4 {[%clk 0:02:57]} 8. Qd2 {[%clk 0:02:58]}  O-O {[%clk 0:02:54]} 9. Ne3 {[%clk 0:02:58]}  Be6 {[%clk 0:02:55]} 10. Ncd5 {[%clk 0:02:58]}  a6 {[%clk 0:02:49]} 11. a3 {[%clk 0:02:57]}  b5 {[%clk 0:02:45]} 12. Ba2 {[%clk 0:02:57]}  Nd7 {[%clk 0:02:46]} 13. Nf5 {[%clk 0:02:32]}  Bxf5 {[%clk 0:02:28]} 14. exf5 {[%clk 0:02:32]}  Nd4 {[%clk 0:02:29]} 15. O-O {[%clk 0:02:32]}  Nf6 {[%clk 0:02:07]} 16. Ne3 {[%clk 0:02:28]}  d5 {[%clk 0:02:03]} 17. c3 {[%clk 0:02:18]}  Nc6 {[%clk 0:02:04]} 18. Qd1 {[%clk 0:02:19]}  Qd7 {[%clk 0:01:45]} 19. c4 {[%clk 0:02:19]}  d4 {[%clk 0:01:27]} 20. Nd5 {[%clk 0:02:19]}  Nxd5 {[%clk 0:01:27]} 21. cxd5 {[%clk 0:02:19]}  Na5 {[%clk 0:01:25]} 22. Qe1 {[%clk 0:02:00]}  Nb7 {[%clk 0:01:15]} 23. Qxe5 {[%clk 0:01:59]}  Rfe8 {[%clk 0:01:11]} 24. Qf4 {[%clk 0:01:54]}  Bf6 {[%clk 0:01:11]} 25. Qf3 {[%clk 0:01:50]}  Nd6 {[%clk 0:01:07]} 26. g4 {[%clk 0:01:49]}  c4 {[%clk 0:01:05]} 27. Bf4 {[%clk 0:01:34]}  Be5 {[%clk 0:01:05]} 28. Bd2 {[%clk 0:01:34]}  Rac8 {[%clk 0:01:03]} 29. Bb4 {[%clk 0:01:30]}  cxd3 {[%clk 0:01:03]} 30. Qxd3 {[%clk 0:01:13]}  Nc4 {[%clk 0:01:03]} 31. Rab1 {[%clk 0:00:57]}  a5 {[%clk 0:01:03]} 32. Bd2 {[%clk 0:00:55]}  Qxd5 {[%clk 0:00:58]} 33. Bxa5 {[%clk 0:00:41]}  h5 {[%clk 0:00:40]} 34. h3 {[%clk 0:00:33]}  hxg4 {[%clk 0:00:41]} 35. hxg4 {[%clk 0:00:34]}  Bb8 {[%clk 0:00:41]} 36. Bb4 {[%clk 0:00:29]}  Qe5 {[%clk 0:00:36]} 37. Qh3 {[%clk 0:00:28]}  Qf4 {[%clk 0:00:28]} 38. Rbe1 {[%clk 0:00:19]}  d3 {[%clk 0:00:29]} 39. Bxc4 {[%clk 0:00:13]}  bxc4 {[%clk 0:00:29]} 40. Kg2 {[%clk 0:00:14]}  Re4 {[%clk 0:00:09]} 41. Rxe4 {[%clk 0:00:13]}  Qxe4+ {[%clk 0:00:10]} 42. Qf3 {[%clk 0:00:14]}  Qe5 {[%clk 0:00:08]} 43. Rh1 {[%clk 0:00:14]}  f6 {[%clk 0:00:07]} 44. Bc3 {[%clk 0:00:14]}  Qc5 {[%clk 0:00:05]} 45. Qe4 {[%clk 0:00:14]}  Qc6 {[%clk 0:00:06]} 46. Qxc6 {[%clk 0:00:14]}  Rxc6 {[%clk 0:00:07]} 47. Kf3 {[%clk 0:00:14]}  Be5 {[%clk 0:00:06]} 48. Ke4 {[%clk 0:00:12]}  Bxc3 {[%clk 0:00:05]} 49. bxc3 {[%clk 0:00:13]}  Rd6 {[%clk 0:00:05]} 50. Rd1 {[%clk 0:00:09]}  Kf7 {[%clk 0:00:06]} 51. Ke3 {[%clk 0:00:07]}  Ke7 {[%clk 0:00:05]} 52. a4 {[%clk 0:00:08]}  Kd7 {[%clk 0:00:05]} 53. Rb1 {[%clk 0:00:06]}  Kc7 {[%clk 0:00:04]} 54. Kd2 {[%clk 0:00:05]}  Rb6 {[%clk 0:00:04]} 55. Rb4 {[%clk 0:00:04]}  Rxb4 {[%clk 0:00:03]} 56. cxb4 {[%clk 0:00:05]}  Kc6 {[%clk 0:00:03]} 57. Kc3 {[%clk 0:00:05]}  Kb6 {[%clk 0:00:03]} 58. f3 {[%clk 0:00:05]}  Kc6 {[%clk 0:00:04]} 59. Kd2 {[%clk 0:00:05]}  Kb6 {[%clk 0:00:04]} 60. Kc3 {[%clk 0:00:05]}  Kc6 {[%clk 0:00:05]} 61. Kd2 {[%clk 0:00:04]}  Kd5 {[%clk 0:00:05]} 62. Kc3 {[%clk 0:00:03]}  Kd6 {[%clk 0:00:05]} 63. a5 {[%clk 0:00:03]}  Kc6 {[%clk 0:00:05]} 64. a6 {[%clk 0:00:04]}  Kb6 {[%clk 0:00:05]} 65. b5 {[%clk 0:00:04]}  Ka7 {[%clk 0:00:06]} 66. Kd2 {[%clk 0:00:04]}  Kb6 {[%clk 0:00:07]} 67. Kc3 {[%clk 0:00:04]}  Ka7 {[%clk 0:00:07]} 68. f4 {[%clk 0:00:05]}  Kb6 {[%clk 0:00:08]} 69. Kd2 {[%clk 0:00:05]}  Ka7 {[%clk 0:00:08]} 70. Ke3 {[%clk 0:00:06]}  Kb6 {[%clk 0:00:09]} 71. g5 {[%clk 0:00:06]}  Ka7 {[%clk 0:00:09]} 72. Kd2 {[%clk 0:00:06]}  Kb6 {[%clk 0:00:10]} 73. Kc3 {[%clk 0:00:05]}  Ka7 {[%clk 0:00:11]} 74. Kd2 {[%clk 0:00:05]}  Kb6 {[%clk 0:00:11]} 75. Kc3 {[%clk 0:00:05]}  Ka7 {[%clk 0:00:12]} 76. Kd2 {[%clk 0:00:03]} 1/2-1/2


[Site "https://www.chess.com"]

[Event "Titled Tuesday Blitz October 5 2021"]
[White "Noboa Silva, Kevin"]
[Black "adjorno"]
[WhiteFideId "3618471"]
[WhiteElo "2161"]
[BlackElo "2416"]
[Result "1-0"]
[Round "10"]
[TimeControl "180+1"]
[Date "2021.10.05"]
[WhiteClock "0:00:37"]
[BlackClock "0:02:24"]

1. e4 {[%clk 0:02:21]}  c6 {[%clk 0:02:58]} 2. d4 {[%clk 0:02:21]}  d5 {[%clk 0:02:58]} 3. f3 {[%clk 0:02:21]}  e6 {[%clk 0:02:58]} 4. c3 {[%clk 0:02:17]}  dxe4 {[%clk 0:02:56]} 5. Be3 {[%clk 0:02:12]}  Nf6 {[%clk 0:02:55]} 6. Nd2 {[%clk 0:02:11]}  Nd5 {[%clk 0:02:53]} 7. Qe2 {[%clk 0:02:05]}  Nxe3 {[%clk 0:02:52]} 8. Qxe3 {[%clk 0:02:05]}  exf3 {[%clk 0:02:52]} 9. Ngxf3 {[%clk 0:02:02]}  Be7 {[%clk 0:02:52]} 10. Bd3 {[%clk 0:02:02]}  Nd7 {[%clk 0:02:52]} 11. O-O {[%clk 0:02:01]}  Nf6 {[%clk 0:02:53]} 12. Ne5 {[%clk 0:01:59]}  Qc7 {[%clk 0:02:45]} 13. Rf3 {[%clk 0:01:50]}  b6 {[%clk 0:02:44]} 14. Re1 {[%clk 0:01:42]}  Bb7 {[%clk 0:02:44]} 15. Nxf7 {[%clk 0:01:39]}  Kxf7 {[%clk 0:02:44]} 16. Qxe6+ {[%clk 0:01:39]}  Kf8 {[%clk 0:02:44]} 17. Bc4 {[%clk 0:01:34]}  Ke8 {[%clk 0:02:44]} 18. Qf7+ {[%clk 0:01:27]}  Kd8 {[%clk 0:02:44]} 19. Qxg7 {[%clk 0:01:23]}  Rf8 {[%clk 0:02:29]} 20. Bf7 {[%clk 0:01:15]}  Nd7 {[%clk 0:02:24]} 21. Rxe7 {[%clk 0:01:06]}  Kxe7 {[%clk 0:02:24]} 22. Qg5+ {[%clk 0:00:41]}  Kd6 {[%clk 0:02:24]} 23. Nc4# {[%clk 0:00:37]} 1-0


[Site "https://www.chess.com"]

[Event "Titled Tuesday Blitz October 5 2021"]
[White "Onyshchuk, Volodymyr"]
[Black "Korobov, Anton"]
[WhiteFideId "14114038"]
[BlackFideId "14105730"]
[WhiteElo "2603"]
[BlackElo "2718"]
[Result "0-1"]
[Round "10"]
[TimeControl "180+1"]
[Date "2021.10.05"]
[WhiteClock "0:00:01"]
[BlackClock "0:00:17"]

1. Nf3 {[%clk 0:03:00]}  d5 {[%clk 0:02:58]} 2. g3 {[%clk 0:03:01]}  Bg4 {[%clk 0:02:57]} 3. Bg2 {[%clk 0:03:00]}  Nd7 {[%clk 0:02:57]} 4. O-O {[%clk 0:02:59]}  e6 {[%clk 0:02:56]} 5. d3 {[%clk 0:02:59]}  Bd6 {[%clk 0:02:53]} 6. Nbd2 {[%clk 0:02:59]}  Ne7 {[%clk 0:02:53]} 7. h3 {[%clk 0:02:59]}  Bh5 {[%clk 0:02:52]} 8. e4 {[%clk 0:02:58]}  c6 {[%clk 0:02:52]} 9. Qe1 {[%clk 0:02:51]}  O-O {[%clk 0:02:51]} 10. b3 {[%clk 0:02:38]}  a5 {[%clk 0:02:50]} 11. a3 {[%clk 0:02:37]}  a4 {[%clk 0:02:32]} 12. b4 {[%clk 0:02:34]}  c5 {[%clk 0:02:33]} 13. e5 {[%clk 0:02:13]}  Bc7 {[%clk 0:02:26]} 14. bxc5 {[%clk 0:02:09]}  Nxc5 {[%clk 0:02:26]} 15. Nd4 {[%clk 0:02:06]}  Nc6 {[%clk 0:02:16]} 16. Nxc6 {[%clk 0:02:01]}  bxc6 {[%clk 0:02:14]} 17. f4 {[%clk 0:02:01]}  f5 {[%clk 0:01:43]} 18. Kh2 {[%clk 0:01:35]}  Ba5 {[%clk 0:01:24]} 19. Bb2 {[%clk 0:01:29]}  Rb8 {[%clk 0:01:19]} 20. Bd4 {[%clk 0:01:21]}  Nd7 {[%clk 0:01:08]} 21. Qc1 {[%clk 0:01:18]}  c5 {[%clk 0:01:06]} 22. Bf2 {[%clk 0:01:16]}  Bc3 {[%clk 0:01:03]} 23. Rb1 {[%clk 0:01:14]}  Qa5 {[%clk 0:01:04]} 24. Rxb8 {[%clk 0:00:37]}  Rxb8 {[%clk 0:01:05]} 25. Nb1 {[%clk 0:00:36]}  Bb2 {[%clk 0:00:54]} 26. Qe1 {[%clk 0:00:36]}  Qxe1 {[%clk 0:00:44]} 27. Rxe1 {[%clk 0:00:36]}  c4 {[%clk 0:00:32]} 28. dxc4 {[%clk 0:00:34]}  dxc4 {[%clk 0:00:32]} 29. Nd2 {[%clk 0:00:29]}  Bc3 {[%clk 0:00:28]} 30. Be3 {[%clk 0:00:18]}  Nc5 {[%clk 0:00:22]} 31. Rc1 {[%clk 0:00:16]}  Bb2 {[%clk 0:00:20]} 32. Rb1 {[%clk 0:00:14]}  c3 {[%clk 0:00:20]} 33. Nc4 {[%clk 0:00:14]}  Ne4 {[%clk 0:00:20]} 34. Bxe4 {[%clk 0:00:12]}  fxe4 {[%clk 0:00:20]} 35. Kg2 {[%clk 0:00:09]}  Be2 {[%clk 0:00:19]} 36. Nd6 {[%clk 0:00:07]}  Bd3 {[%clk 0:00:18]} 37. cxd3 {[%clk 0:00:05]}  exd3 {[%clk 0:00:19]} 38. Ne4 {[%clk 0:00:04]}  c2 {[%clk 0:00:18]} 39. Rf1 {[%clk 0:00:04]}  Bxa3 {[%clk 0:00:17]} 40. Kf3 {[%clk 0:00:04]}  Bb2 {[%clk 0:00:18]} 41. Nf2 {[%clk 0:00:02]}  Rb3 {[%clk 0:00:16]} 42. Ke4 {[%clk 0:00:02]}  a3 {[%clk 0:00:16]} 43. Nxd3 {[%clk 0:00:02]}  a2 {[%clk 0:00:17]} 44. Nxb2 {[%clk 0:00:02]}  Rxb2 {[%clk 0:00:17]} 45. Ra1 {[%clk 0:00:03]}  Rb3 {[%clk 0:00:17]} 46. Bd2 {[%clk 0:00:01]}  Rb2 {[%clk 0:00:17]} 0-1


[Site "https://www.chess.com"]

[Event "Titled Tuesday Blitz October 5 2021"]
[White "Oparin, Grigoriy"]
[Black "Indjic, Aleksandar"]
[WhiteFideId "24125890"]
[BlackFideId "911925"]
[WhiteElo "2604"]
[BlackElo "2643"]
[Result "0-1"]
[Round "10"]
[TimeControl "180+1"]
[Date "2021.10.05"]
[WhiteClock "0:00:01"]
[BlackClock "0:00:13"]

1. Nf3 {[%clk 0:03:00]}  g6 {[%clk 0:02:57]} 2. g3 {[%clk 0:03:01]}  Bg7 {[%clk 0:02:58]} 3. d4 {[%clk 0:03:02]}  d6 {[%clk 0:02:57]} 4. Bg2 {[%clk 0:03:02]}  Nd7 {[%clk 0:02:57]} 5. c4 {[%clk 0:03:02]}  e5 {[%clk 0:02:56]} 6. Nc3 {[%clk 0:03:03]}  Nh6 {[%clk 0:02:56]} 7. O-O {[%clk 0:03:01]}  O-O {[%clk 0:02:56]} 8. e4 {[%clk 0:03:01]}  f6 {[%clk 0:02:56]} 9. h3 {[%clk 0:02:58]}  Nf7 {[%clk 0:02:56]} 10. Be3 {[%clk 0:02:56]}  c6 {[%clk 0:02:46]} 11. Qc2 {[%clk 0:02:51]}  Qe7 {[%clk 0:02:41]} 12. Rad1 {[%clk 0:02:52]}  a5 {[%clk 0:02:31]} 13. Rfe1 {[%clk 0:02:51]}  Ng5 {[%clk 0:02:24]} 14. Nxg5 {[%clk 0:02:27]}  fxg5 {[%clk 0:02:25]} 15. c5 {[%clk 0:02:14]}  exd4 {[%clk 0:02:18]} 16. cxd6 {[%clk 0:02:14]}  Qxd6 {[%clk 0:02:16]} 17. e5 {[%clk 0:02:15]}  Nxe5 {[%clk 0:02:04]} 18. Bxd4 {[%clk 0:02:09]}  Nf3+ {[%clk 0:01:38]} 19. Bxf3 {[%clk 0:02:09]}  Bxd4 {[%clk 0:01:38]} 20. Ne4 {[%clk 0:02:08]}  Qe5 {[%clk 0:01:26]} 21. Qc4+ {[%clk 0:02:01]}  Kg7 {[%clk 0:01:23]} 22. Qxd4 {[%clk 0:01:50]}  Qxd4 {[%clk 0:01:23]} 23. Rxd4 {[%clk 0:01:51]}  Rxf3 {[%clk 0:01:22]} 24. Nxg5 {[%clk 0:01:51]}  Rf8 {[%clk 0:01:16]} 25. Re7+ {[%clk 0:01:42]}  Kf6 {[%clk 0:01:09]} 26. Rxh7 {[%clk 0:01:43]}  Kxg5 {[%clk 0:01:06]} 27. g4 {[%clk 0:00:59]}  Be6 {[%clk 0:00:49]} 28. Re4 {[%clk 0:00:17]}  Bd5 {[%clk 0:00:36]} 29. h4+ {[%clk 0:00:17]}  Kf6 {[%clk 0:00:36]} 30. Ree7 {[%clk 0:00:07]}  Rae8 {[%clk 0:00:34]} 31. Rxb7 {[%clk 0:00:05]}  Ke5 {[%clk 0:00:32]} 32. h5 {[%clk 0:00:03]}  Kf4 {[%clk 0:00:32]} 33. Rhe7 {[%clk 0:00:02]}  g5 {[%clk 0:00:16]} 34. h6 {[%clk 0:00:01]}  Kxg4 {[%clk 0:00:16]} 35. h7 {[%clk 0:00:01]}  Rh8 {[%clk 0:00:16]} 36. b3 {[%clk 0:00:01]}  Rxh7 {[%clk 0:00:13]} 0-1


[Site "https://www.chess.com"]